bitfinex/quotes_SOLUSD_20240729
["timestamp","ask_amount","ask_price","bid_price","bid_amount"]
[1722222711038,6.3683,193.37,193.28,46.03453756]
[1722222711235,6.3683,193.37,193.3,25.73]
[1722222711457,6.3683,193.37,193.31,45.0]
[1722222712136,15.5662,193.39,193.33,25.73]
[1722222712339,15.5662,193.39,193.34,45.17]
[1722222712562,15.5662,193.39,193.34,45.0]
[1722222715463,15.9815,193.45,193.36,25.73]
[1722222715670,15.9815,193.45,193.39,25.73]
[1722222715841,15.9815,193.45,193.4,45.0]
[1722222716764,15.9815,193.45,193.37,1.03408232]
[1722222716969,15.9815,193.45,193.41,45.0]
[1722222719167,15.9815,193.45,193.36,32.27745563]
[1722222719482,15.9815,193.45,193.36,6.54745563]
[1722222719644,15.9815,193.45,193.37,1.03415729]
[1722222719842,15.9815,193.45,193.41,25.73]
[1722222720550,15.9815,193.45,193.42,45.0]
[1722222721381,15.9815,193.5,193.43,0.17]
[1722222721667,15.9815,193.5,193.42,45.0]
[1722222723167,15.9815,193.5,193.41,25.73]
[1722222724877,15.9815,193.5,193.42,45.0]
[1722222726562,15.9815,193.5,193.38,6.54745563]
[1722222726563,0.5,193.49,193.38,6.54745563]
[1722222726748,0.5,193.49,193.38,32.27745563]
[1722222726947,15.158,193.57,193.48,25.73]
[1722222727168,15.158,193.57,193.49,1.03330361]
[1722222727401,15.158,193.57,193.51,25.73]
[1722222727869,15.158,193.57,193.52,45.0]
[1722222729875,15.658,193.57,193.48,7.89334515]
[1722222730179,15.658,193.57,193.49,45.0]
[1722222730376,15.158,193.57,193.48,7.89334515]
[1722222730673,15.658,193.57,193.4,29.92362309]
[1722222731185,0.34,193.56,193.4,28.89]
[1722222731474,15.5415,193.53,193.4,28.89]
[1722222731652,0.84,193.52,193.4,28.89]
[1722222731854,0.5,193.52,193.4,28.89]
[1722222732072,0.5,193.51,193.4,28.89]
[1722222732392,16.0415,193.53,193.4,28.89]
[1722222733862,16.0415,193.53,193.41,45.0]
[1722222734676,15.5415,193.53,193.41,45.0]
[1722222735155,0.5,193.52,193.41,45.0]
[1722222735482,0.5,193.51,193.41,45.0]
[1722222736083,0.5,193.52,193.41,45.0]
[1722222738485,15.7115,193.53,193.42,1.03390818]
[1722222739065,0.5,193.52,193.41,45.0]
[1722222739267,16.2115,193.53,193.41,45.0]
[1722222739856,0.34,193.52,193.41,45.0]
[1722222740291,0.5,193.51,193.36,28.89]
[1722222740476,6.1173,193.49,193.36,28.89]
[1722222740673,0.5,193.48,193.36,28.89]
[1722222740877,0.5,193.48,193.4,28.89]
[1722222741064,6.1173,193.49,193.41,1.03391705]
[1722222741263,6.1173,193.49,193.4,28.89]
[1722222741983,6.1173,193.49,193.41,45.0]
[1722222742179,0.5,193.48,193.41,45.0]
[1722222742407,6.1173,193.49,193.41,45.0]
[1722222743972,0.5,193.48,193.4,28.89]
[1722222744367,6.1173,193.49,193.4,28.89]
[1722222745371,6.1173,193.49,193.41,45.0]
[1722222746691,0.5,193.48,193.41,45.0]
[1722222747414,6.1173,193.49,193.41,45.0]
[1722222748000,0.5,193.48,193.41,45.0]
[1722222748293,6.1173,193.49,193.41,45.0]
[1722222749180,6.1173,193.49,193.44,25.69]
[1722222749575,6.1173,193.49,193.47,25.69]
[1722222749796,15.1996,193.5,193.47,25.69]
[1722222750100,6.1193,193.54,193.47,25.69]
[1722222750401,6.1193,193.54,193.5,25.69]
[1722222750698,6.1193,193.54,193.51,45.0]
[1722222750876,6.1193,193.54,193.5,25.69]
[1722222751273,0.7738022,193.58,193.47,25.69]
[1722222751274,22.6904,193.57,193.47,25.69]
[1722222751477,23.1904,193.57,193.48,45.0]
[1722222751906,0.7738022,193.58,193.53,25.69]
[1722222752104,0.7738022,193.58,193.54,45.0]
[1722222752402,0.7738022,193.58,193.56,25.69]
[1722222752987,0.7738022,193.58,193.53,25.69]
[1722222753194,0.7738022,193.58,193.54,45.0]
[1722222754806,0.7738022,193.58,193.53,25.69]
[1722222754983,0.7738022,193.58,193.5,25.69]
[1722222755294,0.7738022,193.58,193.51,45.0]
[1722222755502,0.7738022,193.58,193.5,25.69]
[1722222755672,1.2738022,193.58,193.5,25.69]
[1722222755877,0.7738022,193.58,193.5,25.69]
[1722222756075,0.7738022,193.58,193.44,7.19488626]
[1722222756280,0.7738022,193.58,193.47,25.69]
[1722222756795,21.1891,193.57,193.47,25.69]
[1722222757094,0.5,193.56,193.44,25.69]
[1722222757293,0.67,193.56,193.44,25.69]
[1722222757495,0.17,193.55,193.44,25.69]
[1722222757698,0.5,193.54,193.44,25.69]
[1722222758002,0.17,193.55,193.44,25.69]
[1722222758293,0.5,193.55,193.44,25.69]
[1722222758681,0.5,193.54,193.44,25.69]
[1722222758999,0.34,193.53,193.44,25.69]
[1722222759592,0.84,193.53,193.44,25.69]
[1722222759984,6.1229,193.51,193.41,25.69]
[1722222760301,0.5,193.5,193.38,25.69]
[1722222760485,0.34,193.49,193.38,25.69]
[1722222760677,0.5,193.48,193.38,25.69]
[1722222761078,0.5,193.48,193.31,12.96753848]
[1722222761298,0.17,193.47,193.31,12.96753848]
[1722222761481,6.2154,193.45,193.35,25.69]
[1722222761676,0.5,193.44,193.35,25.69]
[1722222762092,0.5,193.44,193.32,27.762951]
[1722222762473,0.17,193.43,193.32,25.69]
[1722222762896,0.5,193.42,193.32,25.69]
[1722222763098,0.5,193.42,193.29,25.69]
[1722222763400,0.17,193.41,193.27,6.3854]
[1722222763704,0.5,193.41,193.27,7.41986906]
[1722222764011,6.2154,193.45,193.34,28.95]
[1722222764790,6.2154,193.45,193.35,46.03407096]
[1722222765109,6.2154,193.45,193.36,0.34]
[1722222765283,6.2154,193.45,193.37,1.03396544]
[1722222765775,6.2154,193.45,193.36,0.34]
[1722222766401,6.2154,193.45,193.35,45.0]
[1722222769291,6.7154,193.45,193.35,45.0]
[1722222769609,6.2154,193.45,193.34,28.95]
[1722222769816,6.2154,193.45,193.31,1.03406423]
[1722222770003,6.7154,193.45,193.31,1.03406423]
[1722222770510,6.7154,193.45,193.28,6.80684586]
[1722222771003,6.2154,193.45,193.3,29.98424965]
[1722222771808,6.2154,193.45,193.31,45.0]
[1722222772106,6.7154,193.45,193.32,0.34]
[1722222772999,6.7154,193.45,193.31,46.03425006]
[1722222773195,6.7154,193.45,193.32,0.34]
[1722222773389,6.2154,193.45,193.32,0.34]
[1722222773588,6.2154,193.45,193.38,28.95]
[1722222773789,6.2154,193.45,193.39,46.0339644]
[1722222777198,6.2154,193.45,193.39,45.0]
[1722222778910,6.2154,193.45,193.34,28.95]
[1722222779210,6.2154,193.45,193.35,20.0]
[1722222780293,6.2154,193.45,193.36,45.0]
[1722222781295,6.2154,193.45,193.36,46.03408087]
[1722222781495,6.2154,193.45,193.36,52.19488626]
[1722222781791,6.2154,193.45,193.36,53.22884862]
[1722222782196,6.2154,193.45,193.36,52.19488626]
[1722222783425,6.2154,193.45,193.37,25.71]
[1722222783603,6.2154,193.45,193.38,45.0]
[1722222786331,6.2154,193.45,193.4,25.71]
[1722222786619,6.2154,193.45,193.41,45.0]
[1722222787730,15.2031,193.46,193.41,45.0]
[1722222788620,15.2031,193.46,193.37,25.71]
[1722222788924,15.2031,193.46,193.38,65.0]
[1722222789125,15.2031,193.46,193.38,45.0]
[1722222790121,0.5,193.45,193.38,45.0]
[1722222791129,0.5,193.45,193.37,25.71]
[1722222791311,15.2031,193.46,193.38,45.0]
[1722222793738,15.2031,193.46,193.4,25.71]
[1722222794038,15.2031,193.46,193.41,20.0]
[1722222794429,15.2031,193.46,193.4,25.71]
[1722222794613,15.2031,193.46,193.41,45.0]
[1722222796020,15.2031,193.46,193.4,25.71]
[1722222796821,15.2031,193.46,193.41,45.0]
[1722222799733,15.2031,193.46,193.41,70.71]
[1722222801012,15.2031,193.46,193.38,25.71]
[1722222802015,0.5,193.45,193.38,25.71]
[1722222802468,15.2031,193.46,193.38,25.71]
[1722222802946,15.7031,193.46,193.38,25.71]
[1722222803317,15.7031,193.46,193.35,25.71]
[1722222803318,0.5,193.45,193.35,25.71]
[1722222803646,15.2031,193.46,193.35,25.71]
[1722222804918,15.7631,193.52,193.44,25.71]
[1722222805127,15.7631,193.52,193.45,7.12378555]
[1722222805315,0.5,193.51,193.36,78.15970918]
[1722222805516,0.5,193.51,193.37,20.0]
[1722222805715,0.5,193.51,193.38,45.0]
[1722222805943,16.05,193.51,193.38,45.0]
[1722222806451,0.34,193.5,193.38,45.0]
[1722222806744,0.5,193.49,193.38,45.0]
[1722222806950,0.34,193.5,193.38,45.0]
[1722222806951,0.5,193.48,193.38,45.0]
[1722222807119,0.5,193.49,193.37,45.0]
[1722222807457,0.5,193.48,193.37,45.0]
[1722222809118,6.33,193.46,193.37,52.44835529]
[1722222809341,0.5,193.45,193.37,45.0]
[1722222811531,0.5,193.45,193.36,7.45272186]
[1722222811720,15.6405,193.44,193.31,7.45272186]
[1722222811922,15.6405,193.44,193.3,33.16272186]
[1722222811923,0.5,193.43,193.3,33.16272186]
[1722222812151,0.34,193.42,193.3,33.16272186]
[1722222812455,0.5,193.41,193.3,33.16272186]
[1722222812655,0.5,193.42,193.33,25.71]
[1722222813048,0.5,193.43,193.33,25.71]
[1722222813246,0.5,193.43,193.33,33.16513549]
[1722222813449,0.5,193.43,193.33,25.71]
[1722222813646,0.5,193.43,193.34,45.0]
[1722222813951,0.5,193.42,193.34,45.0]
[1722222814839,0.5,193.41,193.33,25.71]
[1722222815156,0.5,193.43,193.33,25.71]
[1722222815372,0.84,193.42,193.3,25.71]
[1722222816166,37.4872,193.41,193.27,33.16380686]
[1722222816456,15.4069,193.39,193.27,25.71]
[1722222816659,0.5,193.38,193.27,25.71]
[1722222817334,20.7532,193.35,193.24,7.46179266]
[1722222817560,20.7532,193.35,193.12,15.5033]
[1722222817561,0.5,193.34,193.23,7.46179266]
[1722222817864,0.84,193.34,193.19,25.71]
[1722222820736,0.84,193.34,193.2,45.0]
[1722222822036,15.55,193.32,193.2,45.0]
[1722222822388,15.7038,193.29,193.17,25.71]
[1722222822656,0.5,193.28,193.18,45.0]
[1722222823444,15.7038,193.29,193.19,0.17]
[1722222823639,15.7038,193.29,193.2,25.71]
[1722222823843,15.7038,193.29,193.21,45.17]
[1722222824048,15.7038,193.29,193.21,45.0]
[1722222824264,15.7038,193.29,193.21,46.03478441]
[1722222824468,15.7038,193.29,193.21,45.0]
[1722222825742,15.7038,193.29,193.21,1.03481534]
[1722222826367,15.7038,193.29,193.2,31.73724146]
[1722222826956,15.7038,193.29,193.21,0.34]
[1722222827257,15.7038,193.29,193.21,45.34]
[1722222827469,15.7038,193.29,193.21,45.17]
[1722222828360,15.7038,193.29,193.21,45.0]
[1722222829254,15.7038,193.29,193.2,1.03482042]
[1722222829446,15.7038,193.29,193.23,25.71]
[1722222830688,15.7038,193.29,193.24,45.0]
[1722222832354,15.5697,193.34,193.26,25.71]
[1722222832666,25.71,193.45,193.25,0.34]
[1722222832667,15.5041,193.39,193.29,25.71]
[1722222832865,15.5041,193.39,193.3,45.17]
[1722222833276,16.0041,193.39,193.3,45.0]
[1722222833585,16.0041,193.39,193.23,6.02724146]
[1722222833884,0.34,193.38,193.25,25.71]
[1722222834064,0.5,193.37,193.25,25.71]
[1722222834378,22.302,193.35,193.25,25.71]
[1722222834571,22.302,193.35,193.23,6.02724146]
[1722222834958,0.5,193.34,193.24,45.0]
[1722222835158,22.302,193.35,193.24,45.0]
[1722222835360,22.302,193.35,193.23,45.0]
[1722222835569,0.5,193.34,193.23,45.0]
[1722222835970,0.5,193.33,193.22,25.71]
[1722222836673,0.5,193.34,193.22,25.71]
[1722222837073,0.5,193.34,193.19,32.77206802]
[1722222837258,30.783,193.32,193.11,13.9459057]
[1722222837454,6.6055,193.3,193.16,25.71]
[1722222837673,0.5,193.29,193.16,25.71]
[1722222838592,0.34,193.28,193.16,25.71]
[1722222838889,0.5,193.27,193.16,25.71]
[1722222839071,0.5,193.26,193.16,25.71]
[1722222839783,0.34,193.28,193.16,25.71]
[1722222840094,0.5,193.29,193.16,25.71]
[1722222840660,7.2755,193.3,193.17,45.0]
[1722222840978,0.5,193.29,193.19,25.71]
[1722222841160,0.5,193.29,193.2,45.0]
[1722222841966,6.6055,193.3,193.2,45.0]
[1722222844393,6.6055,193.3,193.22,25.71]
[1722222844578,6.6055,193.3,193.23,45.0]
[1722222845362,6.6055,193.3,193.19,6.02724146]
[1722222845568,7.1055,193.3,193.2,25.71]
[1722222845789,6.6055,193.3,193.2,25.71]
[1722222847573,0.5,193.29,193.16,25.71]
[1722222847779,15.5906,193.27,193.12,7.57554726]
[1722222847982,0.5,193.26,193.14,25.71]
[1722222848481,0.5,193.25,193.14,25.71]
[1722222848673,15.5906,193.27,193.17,25.71]
[1722222849678,15.5906,193.27,193.18,45.0]
[1722222852094,0.5,193.26,193.18,45.0]
[1722222852507,0.5,193.26,193.14,25.71]
[1722222853969,0.5,193.26,193.14,24.71]
[1722222854366,0.5,193.26,193.15,45.0]
[1722222856495,0.5,193.26,193.12,2.19747796]
[1722222856496,6.2172,193.24,193.12,2.19747796]
[1722222856699,15.55,193.21,193.09,6.02724146]
[1722222856879,0.84,193.2,193.09,2.25254979]
[1722222857087,0.84,193.2,193.05,26.74565958]
[1722222857088,0.5,193.2,193.05,26.74565958]
[1722222857485,0.5,193.2,193.05,34.21869592]
[1722222857997,15.7462,193.22,193.07,25.71]
[1722222858200,15.7462,193.22,193.1,25.71]
[1722222858201,16.2462,193.22,193.1,25.71]
[1722222858369,16.2462,193.22,193.13,25.71]
[1722222858370,15.7462,193.22,193.13,25.71]
[1722222859200,15.7462,193.22,193.14,45.34]
[1722222860009,15.7462,193.22,193.14,45.0]
[1722222861004,0.5,193.21,193.1,31.73724146]
[1722222861376,0.17,193.2,193.07,25.71]
[1722222861571,16.3242,193.18,193.07,25.71]
[1722222861796,0.5,193.17,193.07,25.71]
[1722222862293,0.5,193.17,193.05,2.273639]
[1722222862522,0.5,193.17,193.04,31.73724146]
[1722222863099,16.3242,193.18,193.04,31.73724146]
[1722222863798,0.5,193.17,193.05,45.0]
[1722222863997,0.5,193.17,193.04,25.71]
[1722222864206,15.5678,193.16,193.07,25.71]
[1722222864676,15.5678,193.16,193.05,6.02724146]
[1722222864998,15.5678,193.16,193.06,25.71]
[1722222865409,15.5678,193.16,193.07,45.0]
[1722222865982,15.5678,193.16,193.08,20.0]
[1722222866303,15.5678,193.16,193.09,45.0]
[1722222866511,15.5678,193.16,193.1,20.0]
[1722222866724,15.5678,193.16,193.08,20.0]
[1722222867289,15.5678,193.16,193.09,45.0]
[1722222867527,15.5678,193.16,193.1,20.0]
[1722222868095,15.5678,193.16,193.09,20.0]
[1722222868797,16.0678,193.16,193.09,20.0]
[1722222869399,15.5678,193.16,193.09,20.0]
[1722222870198,15.5678,193.16,193.04,20.0]
[1722222870395,15.5678,193.16,193.05,45.0]
[1722222870595,15.5678,193.16,193.06,20.0]
[1722222870797,15.5678,193.16,193.07,45.0]
[1722222871120,15.5678,193.16,193.08,20.0]
[1722222872103,16.0678,193.16,192.98,13.66207264]
[1722222872416,6.8183,193.15,193.01,25.71]
[1722222872596,0.5,193.14,193.01,25.71]
[1722222872793,31.2756,193.13,192.97,27.89296275]
[1722222872993,0.5,193.12,192.97,27.89296275]
[1722222873321,0.34,193.11,192.97,25.71]
[1722222873486,0.5,193.1,192.97,25.71]
[1722222874221,21.6487,193.09,192.95,2.19628704]
[1722222874405,21.6487,193.09,192.96,1.03621388]
[1722222875023,22.1487,193.09,192.95,25.71]
[1722222875401,22.1487,193.09,192.95,26.74622489]
[1722222875609,0.5,193.08,192.95,26.74619715]
[1722222875810,0.5,193.08,192.96,20.0]
[1722222876001,0.5,193.07,192.95,25.71]
[1722222876525,21.4787,193.09,192.98,25.71]
[1722222876526,21.9787,193.09,192.98,25.71]
[1722222876823,21.4787,193.09,192.99,1.0360285]
[1722222877120,21.4787,193.09,192.98,25.71]
[1722222877294,21.4787,193.09,193.01,25.71]
[1722222877493,21.4787,193.09,193.02,20.0]
[1722222878824,21.4787,193.09,193.03,45.0]
[1722222879125,21.4787,193.09,193.04,20.0]
[1722222879291,21.4787,193.09,193.02,20.0]
[1722222879695,21.4787,193.09,192.99,20.0]
[1722222880106,0.5,193.08,192.94,1.03596009]
[1722222880291,0.5,193.08,192.95,26.05]
[1722222881637,0.5,193.08,192.96,20.0]
[1722222881803,21.4787,193.09,192.98,25.71]
[1722222882005,21.4787,193.09,192.99,45.34]
[1722222882224,21.4787,193.09,192.99,45.0]
[1722222882540,0.5,193.08,192.95,25.71]
[1722222882726,0.5,193.08,192.96,45.0]
[1722222883030,0.5,193.07,192.96,45.0]
[1722222883801,0.5,193.07,192.97,20.0]
[1722222884134,0.5,193.07,192.98,45.0]
[1722222884304,16.391,193.06,192.96,45.0]
[1722222884501,0.5,193.05,192.92,26.4838022]
[1722222884808,16.391,193.06,192.92,0.7738022]
[1722222884809,6.8208,193.04,192.92,0.7738022]
[1722222884999,6.8208,193.04,192.92,20.7738022]
[1722222885201,15.5537,193.03,192.92,0.7738022]
[1722222885395,0.5,193.02,192.92,0.7738022]
[1722222886424,15.8374,193.01,192.92,0.7738022]
[1722222886723,15.3374,193.01,192.92,0.7738022]
[1722222887046,15.8374,193.01,192.92,0.7738022]
[1722222887199,15.3374,193.01,192.92,0.7738022]
[1722222890043,15.3374,193.01,192.93,0.34]
[1722222890728,15.3374,193.01,192.93,45.34]
[1722222891029,15.3374,193.01,192.93,45.0]
[1722222892511,15.3374,193.01,192.92,0.7738022]
[1722222893114,15.3374,193.01,192.93,1.20633191]
[1722222893415,15.3374,193.01,192.92,26.4838022]
[1722222893938,15.3374,193.01,192.93,45.17]
[1722222894320,15.3374,193.01,192.93,45.0]
[1722222899133,0.5,193.0,192.93,45.0]
[1722222899341,15.3374,193.01,192.93,45.0]
[1722222899834,15.3374,193.01,192.92,0.7738022]
[1722222901134,0.5,193.0,192.92,0.7738022]
[1722222901849,15.3374,193.01,192.92,0.7738022]
[1722222903045,15.3374,193.01,192.94,25.71]
[1722222903214,15.248,193.07,192.97,25.71]
[1722222903418,15.248,193.07,193.0,25.71]
[1722222903721,4.1403,193.22,193.0,25.71]
[1722222903722,15.248,193.12,193.01,20.34]
[1722222903932,15.248,193.12,193.02,1.03570749]
[1722222904132,15.248,193.12,193.03,0.34]
[1722222904445,15.248,193.12,193.03,20.34]
[1722222904645,15.248,193.12,193.04,46.03567032]
[1722222904958,15.248,193.12,193.05,20.34]
[1722222905147,15.248,193.12,193.06,45.0]
[1722222905347,15.248,193.12,193.07,20.0]
[1722222905538,15.248,193.12,193.08,45.0]
[1722222905849,22.4848,193.2,193.08,45.0]
[1722222906025,22.9848,193.2,193.08,45.0]
[1722222907736,22.4848,193.2,193.09,1.03563729]
[1722222907937,22.4848,193.2,193.1,0.34]
[1722222908552,22.4848,193.2,193.11,1.03540551]
[1722222908761,22.4848,193.2,193.12,0.34]
[1722222909657,16.4204,193.2,193.13,1.0352988]
[1722222910538,16.4204,193.2,193.14,1.03523517]
[1722222911051,16.4204,193.2,193.12,45.34]
[1722222911052,6.0776,193.24,193.15,0.34]
[1722222912647,6.0776,193.24,193.15,1.3750471]
[1722222913840,6.0776,193.24,193.15,0.34]
[1722222915968,6.5776,193.24,193.11,2.19144973]
[1722222916259,0.5,193.23,193.1,6.39389679]
[1722222916460,6.0776,193.24,193.1,6.39389679]
[1722222916771,6.0776,193.24,193.11,32.82106851]
[1722222916939,6.0776,193.24,193.14,25.71]
[1722222917259,6.0776,193.24,193.15,1.03498005]
[1722222917467,6.0776,193.24,193.16,0.34]
[1722222917650,6.0776,193.24,193.17,1.03497666]
[1722222917968,6.0776,193.24,193.18,0.34]
[1722222918966,16.058,193.25,193.18,33.16079269]
[1722222919264,16.058,193.25,193.19,51.07581501]
[1722222919466,16.058,193.25,193.2,0.34]
[1722222919670,16.058,193.25,193.2,6.41581501]
[1722222919843,6.4031,193.29,193.21,52.11062312]
[1722222920037,6.4031,193.29,193.22,0.34]
[1722222920344,16.2823,193.3,193.23,7.1104479]
[1722222920541,22.6854,193.34,193.24,45.34]
[1722222920758,22.6854,193.34,193.25,20.0]
[1722222920963,22.6854,193.34,193.26,46.37443589]
[1722222921170,22.6854,193.34,193.26,1.37443589]
[1722222921348,22.6854,193.34,193.26,46.37443589]
[1722222922949,16.2823,193.34,193.27,20.0]
[1722222923168,16.2823,193.34,193.28,45.34]
[1722222924961,0.5,193.33,193.25,6.07581501]
[1722222925163,0.5,193.33,193.18,15.55]
[1722222925164,16.2823,193.34,193.21,1.03441415]
[1722222925364,16.2823,193.34,193.21,1.03469165]
[1722222925747,16.2823,193.34,193.22,41.26]
[1722222925946,16.2823,193.34,193.25,25.71]
[1722222926251,16.2823,193.34,193.26,1.03439251]
[1722222926447,16.2823,193.34,193.27,1.03439469]
[1722222926971,16.2823,193.34,193.28,0.34]
[1722222927349,16.2823,193.34,193.29,0.34]
[1722222927555,16.2823,193.34,193.27,0.34]
[1722222929175,16.2823,193.34,193.27,20.34]
[1722222929363,16.2823,193.34,193.28,45.0]
[1722222929565,16.2823,193.34,193.29,20.0]
[1722222929769,16.2823,193.34,193.3,45.0]
[1722222929976,16.2823,193.34,193.22,37.86492136]
[1722222930274,16.2823,193.34,193.23,0.34]
[1722222931364,16.2823,193.34,193.24,1.03463087]
[1722222931555,16.2823,193.34,193.25,0.34]
[1722222932859,16.2823,193.34,193.25,1.37449554]
[1722222933061,16.2823,193.34,193.25,46.37449554]
[1722222937763,16.2823,193.34,193.25,45.34]
[1722222938659,6.3302,193.33,193.18,4.56941796]
[1722222938981,6.3302,193.33,193.19,26.74477635]
[1722222939666,6.3302,193.33,193.2,6.07581501]
[1722222939865,6.3302,193.33,193.21,1.03463414]
[1722222940071,6.3302,193.33,193.21,21.03463414]
[1722222940667,6.3302,193.33,193.22,0.34]
[1722222941588,21.2905,193.42,193.32,25.71]
[1722222941760,21.2905,193.42,193.33,73.73944249]
[1722222941966,21.2905,193.42,193.33,87.48064966]
[1722222942172,21.2905,193.42,193.33,87.31064966]
[1722222942491,21.2905,193.42,193.34,0.17]
[1722222942784,21.2905,193.42,193.34,16.10178726]
[1722222943094,21.2905,193.42,193.35,45.17]
[1722222943391,21.2905,193.42,193.36,20.0]
[1722222943572,21.2905,193.42,193.37,45.0]
[1722222946375,21.2905,193.42,193.37,52.3654162]
[1722222947083,15.0975,193.42,193.37,52.3654162]
[1722222947280,6.2085,193.47,193.38,0.34]
[1722222947478,16.4241,193.46,193.38,8.90637106]
[1722222947784,16.4241,193.46,193.39,45.0]
[1722222951475,0.5,193.45,193.38,8.56637106]
[1722222951680,16.4241,193.46,193.3,16.86242566]
[1722222951878,0.5,193.45,193.31,7.2620662]
[1722222952102,16.4241,193.46,193.32,1.03415069]
[1722222952397,16.4241,193.46,193.33,16.86236913]
[1722222952771,16.4241,193.46,193.34,45.0]
[1722222952978,16.4241,193.46,193.35,1.033956]
[1722222953179,16.4241,193.46,193.36,0.34]
[1722222953380,16.4241,193.46,193.34,61.86238893]
[1722222953381,16.4241,193.46,193.37,0.34]
[1722222953673,16.4241,193.46,193.36,45.0]
[1722222953877,16.4241,193.46,193.37,0.34]
[1722222955997,16.4241,193.46,193.37,8.90637106]
[1722222956304,16.4241,193.46,193.38,45.0]
[1722222956991,16.4241,193.46,193.38,53.56637106]
[1722222957392,16.4241,193.46,193.39,0.17]
[1722222957999,16.4241,193.46,193.39,0.34]
[1722222958205,16.4241,193.46,193.39,8.90637106]
[1722222958508,16.4241,193.46,193.4,53.56637106]
[1722222958798,16.4241,193.46,193.41,45.0]
[1722222959384,16.4241,193.46,193.4,8.56637106]
[1722222959588,16.4241,193.46,193.34,7.2620662]
[1722222959589,0.5,193.45,193.34,7.2620662]
[1722222959786,23.2631,193.44,193.27,10.69499545]
[1722222960130,23.2631,193.44,193.27,16.53164072]
[1722222960399,23.2631,193.44,193.27,24.02422405]
[1722222960584,23.2631,193.44,193.28,22.50642176]
[1722222960782,0.5,193.43,193.29,7.40694838]
[1722222960998,0.5,193.43,193.29,14.36337014]
[1722222961201,23.2631,193.44,193.3,7.99064246]
[1722222961380,23.2631,193.44,193.3,14.3634493]
[1722222961575,23.2631,193.44,193.3,37.62398703]
[1722222961796,23.2631,193.44,193.31,29.63334457]
[1722222961994,23.2631,193.44,193.32,7.99035332]
[1722222962186,23.2631,193.44,193.33,15.11727588]
[1722222962372,23.2631,193.44,193.34,45.34]
[1722222962571,23.2631,193.44,193.34,66.37976633]
[1722222963194,23.2631,193.44,193.37,25.71]
[1722222963374,23.2631,193.44,193.38,45.0]
[1722222963791,23.2631,193.44,193.37,45.0]
[1722222963988,23.2631,193.44,193.38,0.17]
[1722222964400,23.2631,193.44,193.37,45.0]
[1722222965001,23.2631,193.44,193.36,45.0]
[1722222965302,22.2631,193.44,193.36,45.0]
[1722222965498,22.2631,193.44,193.35,25.71]
[1722222965880,22.2631,193.44,193.34,6.95642176]
[1722222966601,0.5,193.43,193.34,6.95642176]
[1722222966784,0.5,193.43,193.32,25.71]
[1722222967103,0.5,193.43,193.29,25.71]
[1722222968084,0.5,193.43,193.28,6.95642176]